[Event "*** Titled Tuesday Blitz"]
[Site "Chess.com"]
[Date "2020.05.26"]
[Round "7"]
[White "HrvojeZagreb"]
[Black "harkerchess"]
[Result "1/2-1/2"]
[WhiteElo "2165"]
[BlackElo "2054"]
[TimeControl "180+1"]
[EndTime "11:22:59 PDT"]
[Termination "Game drawn by repetition"]

1. d4 {[%clk 0:02:46.7]} 1... d5 {[%clk 0:02:59.4]} 2. Bf4 {[%clk 0:02:26.8]}
2... Nf6 {[%clk 0:02:54.6]} 3. e3 {[%clk 0:02:26.5]} 3... c5 {[%clk 0:02:13.8]}
4. Nc3 {[%clk 0:02:25]} 4... e6 {[%clk 0:02:14.3]} 5. Nb5 {[%clk 0:02:24.3]}
5... Na6 {[%clk 0:02:10.5]} 6. Nf3 {[%clk 0:02:13.2]} 6... Bd7 {[%clk
0:02:07.9]} 7. a4 {[%clk 0:02:12.5]} 7... Bc6 {[%clk 0:02:02.6]} 8. c3 {[%clk
0:02:06.8]} 8... Nh5 {[%clk 0:02:01.6]} 9. Be5 {[%clk 0:01:51.7]} 9... f6 {[%clk
0:01:57.2]} 10. Ng5 {[%clk 0:01:32.7]} 10... g6 {[%clk 0:01:54.3]} 11. Nxe6
{[%clk 0:01:30.2]} 11... Qd7 {[%clk 0:01:52.9]} 12. Nec7+ {[%clk 0:01:26.6]}
12... Nxc7 {[%clk 0:01:51.4]} 13. Nxc7+ {[%clk 0:01:26.6]} 13... Kd8 {[%clk
0:01:51.7]} 14. Nxa8 {[%clk 0:01:16.4]} 14... fxe5 {[%clk 0:01:51.3]} 15. dxe5
{[%clk 0:00:57.5]} 15... b6 {[%clk 0:01:45.7]} 16. Bb5 {[%clk 0:00:55.9]} 16...
Bxb5 {[%clk 0:01:36.2]} 17. axb5 {[%clk 0:00:56.8]} 17... Qb7 {[%clk 0:01:36.6]}
18. Nxb6 {[%clk 0:00:34.5]} 18... axb6 {[%clk 0:01:37.5]} 19. c4 {[%clk
0:00:31.8]} 19... d4 {[%clk 0:01:32.5]} 20. O-O {[%clk 0:00:26.4]} 20... Bg7
{[%clk 0:01:28.4]} 21. exd4 {[%clk 0:00:26.1]} 21... Kc7 {[%clk 0:01:26.5]} 22.
dxc5 {[%clk 0:00:21.8]} 22... Rd8 {[%clk 0:01:25]} 23. Qg4 {[%clk 0:00:14.6]}
23... bxc5 {[%clk 0:01:20.4]} 24. Qe6 {[%clk 0:00:11.4]} 24... Qxg2+ {[%clk
0:01:11.7]} 25. Kxg2 {[%clk 0:00:10.5]} 25... Nf4+ {[%clk 0:01:12.6]} 26. Kh1
{[%clk 0:00:06.8]} 26... Nxe6 {[%clk 0:01:13.5]} 27. f4 {[%clk 0:00:05.8]} 27...
Rd4 {[%clk 0:01:12]} 28. Ra7+ {[%clk 0:00:05.2]} 28... Kb8 {[%clk 0:01:10.5]}
29. Re7 {[%clk 0:00:04.6]} 29... Nxf4 {[%clk 0:01:04.1]} 30. Rxg7 {[%clk
0:00:04.5]} 30... Rxc4 {[%clk 0:01:04.1]} 31. e6 {[%clk 0:00:04.5]} 31... Nxe6
{[%clk 0:01:03]} 32. Re7 {[%clk 0:00:04.6]} 32... Re4 {[%clk 0:00:58.3]} 33. b6
{[%clk 0:00:04.3]} 33... h5 {[%clk 0:00:49.5]} 34. Rf8+ {[%clk 0:00:04.1]} 34...
Nxf8 {[%clk 0:00:48.9]} 35. Rxe4 {[%clk 0:00:05]} 35... Kb7 {[%clk 0:00:47.7]}
36. Re8 {[%clk 0:00:04.3]} 36... Nd7 {[%clk 0:00:46.7]} 37. Re7 {[%clk
0:00:04.4]} 37... Kc6 {[%clk 0:00:45.8]} 38. b7 {[%clk 0:00:04.3]} 38... Nb8
{[%clk 0:00:42.3]} 39. Rg7 {[%clk 0:00:04.5]} 39... Kb6 {[%clk 0:00:38.5]} 40.
h4 {[%clk 0:00:04.2]} 40... Nc6 {[%clk 0:00:35.2]} 41. Rxg6 {[%clk 0:00:04.6]}
41... Kxb7 {[%clk 0:00:36.1]} 42. Rg5 {[%clk 0:00:04.9]} 42... Nd4 {[%clk
0:00:35.1]} 43. Rxh5 {[%clk 0:00:05.8]} 43... Nf3 {[%clk 0:00:34.9]} 44. Rxc5
{[%clk 0:00:05.7]} 44... Nxh4 {[%clk 0:00:34.9]} 45. Rc4 {[%clk 0:00:04.9]}
45... Nf5 {[%clk 0:00:34.6]} 46. Rf4 {[%clk 0:00:04.5]} 46... Ne3 {[%clk
0:00:34.2]} 47. Kg1 {[%clk 0:00:04.2]} 47... Nd5 {[%clk 0:00:33.1]} 48. Rf7+
{[%clk 0:00:04.8]} 48... Kb6 {[%clk 0:00:33]} 49. Kf2 {[%clk 0:00:05.7]} 49...
Kb5 {[%clk 0:00:32.8]} 50. Rf5 {[%clk 0:00:05.8]} 50... Kc4 {[%clk 0:00:32.6]}
51. Rxd5 {[%clk 0:00:05.9]} 51... Kxd5 {[%clk 0:00:32.6]} 52. Ke3 {[%clk
0:00:06.8]} 52... Kc4 {[%clk 0:00:32.9]} 53. Kd2 {[%clk 0:00:07.2]} 53... Kb3
{[%clk 0:00:33.2]} 54. Kc1 {[%clk 0:00:07.4]} 54... Kb4 {[%clk 0:00:33.4]} 55.
Kc2 {[%clk 0:00:07.8]} 55... Kc4 {[%clk 0:00:33.7]} 56. Kb1 {[%clk 0:00:07.2]}
56... Kb3 {[%clk 0:00:33.8]} 57. Ka1 {[%clk 0:00:06.7]} 57... Kb4 {[%clk
0:00:32.1]} 58. Ka2 {[%clk 0:00:07.6]} 58... Ka4 {[%clk 0:00:32.4]} 59. b3+
{[%clk 0:00:07.6]} 59... Kb4 {[%clk 0:00:32.5]} 60. Kb2 {[%clk 0:00:08.1]} 60...
Kb5 {[%clk 0:00:33]} 61. Kc3 {[%clk 0:00:08.6]} 61... Kc5 {[%clk 0:00:33.3]} 62.
Kc2 {[%clk 0:00:08.6]} 62... Kb5 {[%clk 0:00:31.5]} 63. Kc3 {[%clk 0:00:08.1]}
63... Kc5 {[%clk 0:00:31.2]} 64. b4+ {[%clk 0:00:07.4]} 64... Kb5 {[%clk
0:00:31.2]} 65. Kb3 {[%clk 0:00:06.7]} 65... Kb6 {[%clk 0:00:31.6]} 66. Kc4
{[%clk 0:00:06.8]} 66... Kc6 {[%clk 0:00:31.9]} 67. Kd4 {[%clk 0:00:06.4]} 67...
Kb6 {[%clk 0:00:30.6]} 68. Kd3 {[%clk 0:00:04.2]} 68... Kb5 {[%clk 0:00:24.9]}
69. Kc3 {[%clk 0:00:04.4]} 69... Kb6 {[%clk 0:00:24.1]} 70. Kb3 {[%clk
0:00:04.3]} 70... Kb5 {[%clk 0:00:24.2]} 71. Ka3 {[%clk 0:00:04.3]} 71... Kb6
{[%clk 0:00:24.4]} 72. Ka4 {[%clk 0:00:04.5]} 72... Ka6 {[%clk 0:00:24.8]} 73.
Kb3 {[%clk 0:00:04.4]} 73... Kb5 {[%clk 0:00:24.9]} 74. Kc3 {[%clk 0:00:04.8]}
74... Kb6 {[%clk 0:00:24.1]} 75. Kc4 {[%clk 0:00:05.4]} 75... Kc6 {[%clk
0:00:24.4]} 76. b5+ {[%clk 0:00:04.5]} 76... Kb6 {[%clk 0:00:24.6]} 77. Kb4
{[%clk 0:00:03.8]} 77... Kb7 {[%clk 0:00:25]} 78. Kc5 {[%clk 0:00:03.2]} 78...
Kc7 {[%clk 0:00:25.3]} 79. Kc4 {[%clk 0:00:02.1]} 79... Kb7 {[%clk 0:00:25.7]}
80. Kb4 {[%clk 0:00:02.4]} 80... Kb6 {[%clk 0:00:24.6]} 81. Ka4 {[%clk
0:00:02.4]} 81... Kb7 {[%clk 0:00:23.7]} 82. Ka5 {[%clk 0:00:03]} 82... Ka7
{[%clk 0:00:23.9]} 83. b6+ {[%clk 0:00:03.5]} 83... Kb7 {[%clk 0:00:24]} 84. Kb5
{[%clk 0:00:04.1]} 84... Kb8 {[%clk 0:00:24.4]} 85. Ka5 {[%clk 0:00:03.3]} 85...
Kb7 {[%clk 0:00:21.6]} 86. Kb5 {[%clk 0:00:03.5]} 86... Kb8 {[%clk 0:00:21.5]}
87. Kc5 {[%clk 0:00:03.2]} 87... Kb7 {[%clk 0:00:20.5]} 88. Kb5 {[%clk 0:00:03]}
1/2-1/2

[Event "*** Titled Tuesday Blitz"]
[Site "Chess.com"]
[Date "2020.05.26"]
[Round "7"]
[White "Jungle_Jaguar"]
[Black "MidnightFox"]
[Result "0-1"]
[WhiteElo "2564"]
[BlackElo "2417"]
[TimeControl "180+1"]
[EndTime "11:23:00 PDT"]
[Termination "MidnightFox won by checkmate"]

1. e4 {[%clk 0:03:00.9]} 1... e5 {[%clk 0:02:58.7]} 2. Nf3 {[%clk 0:03:00.2]}
2... Nc6 {[%clk 0:02:59.1]} 3. Bb5 {[%clk 0:03:00.4]} 3... a6 {[%clk 0:02:59.3]}
4. Ba4 {[%clk 0:03:00.9]} 4... Nf6 {[%clk 0:02:59.4]} 5. O-O {[%clk 0:03:01.3]}
5... b5 {[%clk 0:02:59.7]} 6. Bb3 {[%clk 0:03:00.7]} 6... Bc5 {[%clk 0:03:00]}
7. c3 {[%clk 0:02:47]} 7... d6 {[%clk 0:02:58.1]} 8. d4 {[%clk 0:02:40.2]} 8...
Bb6 {[%clk 0:02:57]} 9. h3 {[%clk 0:02:35.3]} 9... h6 {[%clk 0:02:53.3]} 10. Be3
{[%clk 0:02:26.7]} 10... O-O {[%clk 0:02:51.3]} 11. Nbd2 {[%clk 0:02:24.9]}
11... Bb7 {[%clk 0:02:49]} 12. Re1 {[%clk 0:02:21]} 12... Re8 {[%clk 0:02:46.2]}
13. Rc1 {[%clk 0:02:10.9]} 13... exd4 {[%clk 0:02:29.8]} 14. cxd4 {[%clk
0:02:11.1]} 14... Na5 {[%clk 0:02:26.1]} 15. e5 {[%clk 0:02:06.8]} 15... Nxb3
{[%clk 0:02:20.2]} 16. Qxb3 {[%clk 0:02:01]} 16... Nd5 {[%clk 0:02:18.3]} 17.
Rcd1 {[%clk 0:01:22.1]} 17... Qd7 {[%clk 0:02:05.1]} 18. Nf1 {[%clk 0:01:10.8]}
18... Rad8 {[%clk 0:01:48.6]} 19. Bc1 {[%clk 0:01:07.4]} 19... Ba5 {[%clk
0:01:40.6]} 20. Bd2 {[%clk 0:01:04]} 20... Bb6 {[%clk 0:01:36]} 21. Ng3 {[%clk
0:00:57.1]} 21... Ne7 {[%clk 0:01:14.4]} 22. a3 {[%clk 0:00:32.7]} 22... Nf5
{[%clk 0:01:08.9]} 23. e6 {[%clk 0:00:27.5]} 23... Rxe6 {[%clk 0:01:05.3]} 24.
Rxe6 {[%clk 0:00:26.7]} 24... Qxe6 {[%clk 0:01:04.5]} 25. Qxe6 {[%clk
0:00:22.8]} 25... fxe6 {[%clk 0:01:05.4]} 26. Nh5 {[%clk 0:00:23.2]} 26... Bxf3
{[%clk 0:01:02.9]} 27. gxf3 {[%clk 0:00:22.7]} 27... Nxd4 {[%clk 0:01:01.1]} 28.
Kg2 {[%clk 0:00:22.7]} 28... e5 {[%clk 0:00:59.3]} 29. f4 {[%clk 0:00:20.4]}
29... e4 {[%clk 0:00:58.4]} 30. Ng3 {[%clk 0:00:18.9]} 30... d5 {[%clk
0:00:58.2]} 31. Be3 {[%clk 0:00:18.1]} 31... c5 {[%clk 0:00:57.8]} 32. b4 {[%clk
0:00:15.4]} 32... Nb3 {[%clk 0:00:52.2]} 33. bxc5 {[%clk 0:00:13.2]} 33... Bxc5
{[%clk 0:00:52.3]} 34. Nxe4 {[%clk 0:00:11.6]} 34... Bxa3 {[%clk 0:00:49.4]} 35.
Ng3 {[%clk 0:00:08.6]} 35... a5 {[%clk 0:00:44.6]} 36. Nf5 {[%clk 0:00:07.9]}
36... a4 {[%clk 0:00:43.3]} 37. Bb6 {[%clk 0:00:07]} 37... Rd7 {[%clk
0:00:42.5]} 38. Re1 {[%clk 0:00:05.9]} 38... Kf7 {[%clk 0:00:40.7]} 39. Kf3
{[%clk 0:00:05.2]} 39... Nd2+ {[%clk 0:00:39]} 40. Kg4 {[%clk 0:00:04.7]} 40...
Ne4 {[%clk 0:00:37.9]} 41. f3 {[%clk 0:00:04.7]} 41... Nf6+ {[%clk 0:00:36.9]}
42. Kg3 {[%clk 0:00:05.2]} 42... b4 {[%clk 0:00:36.8]} 43. Ra1 {[%clk
0:00:03.9]} 43... g6 {[%clk 0:00:31.2]} 44. Ne3 {[%clk 0:00:04]} 44... d4 {[%clk
0:00:26]} 45. Nc4 {[%clk 0:00:03.9]} 45... d3 {[%clk 0:00:25.3]} 46. Ne5+ {[%clk
0:00:04.2]} 46... Ke6 {[%clk 0:00:24.6]} 47. Nxd7 {[%clk 0:00:05]} 47... Nxd7
{[%clk 0:00:25.5]} 48. Be3 {[%clk 0:00:05.4]} 48... Nf6 {[%clk 0:00:18.9]} 49.
Kf2 {[%clk 0:00:05.8]} 49... Nd5 {[%clk 0:00:19.1]} 50. Bd2 {[%clk 0:00:06.3]}
50... Nb6 {[%clk 0:00:17.8]} 51. Ke3 {[%clk 0:00:06.7]} 51... Nc4+ {[%clk
0:00:11.3]} 52. Kxd3 {[%clk 0:00:06.5]} 52... Nxd2 {[%clk 0:00:09.4]} 53. Kxd2
{[%clk 0:00:07.4]} 53... Kf5 {[%clk 0:00:10.3]} 54. Ke3 {[%clk 0:00:07]} 54...
h5 {[%clk 0:00:07.7]} 55. h4 {[%clk 0:00:07.3]} 55... Kf6 {[%clk 0:00:08.1]} 56.
Ke4 {[%clk 0:00:07.8]} 56... Ke6 {[%clk 0:00:08.7]} 57. f5+ {[%clk 0:00:07.7]}
57... gxf5+ {[%clk 0:00:08.9]} 58. Kf4 {[%clk 0:00:08.6]} 58... Kf6 {[%clk
0:00:09.8]} 59. Ke3 {[%clk 0:00:08.8]} 59... Ke5 {[%clk 0:00:09.5]} 60. f4+
{[%clk 0:00:09.1]} 60... Kd5 {[%clk 0:00:10]} 61. Kd3 {[%clk 0:00:10]} 61... Kc5
{[%clk 0:00:10.1]} 62. Ra2 {[%clk 0:00:10]} 62... Kb5 {[%clk 0:00:07.8]} 63. Ra1
{[%clk 0:00:10.3]} 63... Bb2 {[%clk 0:00:07.9]} 64. Re1 {[%clk 0:00:10.4]} 64...
a3 {[%clk 0:00:08.1]} 65. Kc2 {[%clk 0:00:10.8]} 65... Ka4 {[%clk 0:00:07.5]}
66. Re8 {[%clk 0:00:10]} 66... b3+ {[%clk 0:00:08.4]} 67. Kd3 {[%clk 0:00:10.3]}
67... a2 {[%clk 0:00:08.5]} 68. Kc4 {[%clk 0:00:10.3]} 68... Ka5 {[%clk
0:00:07.3]} 69. Kc5 {[%clk 0:00:05.2]} 69... Ba3+ {[%clk 0:00:07.5]} 70. Kc4
{[%clk 0:00:04.3]} 70... a1=Q {[%clk 0:00:07.9]} 71. Re3 {[%clk 0:00:02.1]}
71... Qc1+ {[%clk 0:00:07.1]} 72. Rc3 {[%clk 0:00:03]} 72... Qxf4+ {[%clk
0:00:06.7]} 73. Kxb3 {[%clk 0:00:03.2]} 73... Bb4 {[%clk 0:00:06.2]} 74. Kc2
{[%clk 0:00:04.1]} 74... Bxc3 {[%clk 0:00:05.7]} 75. Kxc3 {[%clk 0:00:04.7]}
75... Qxh4 {[%clk 0:00:06.4]} 76. Kd3 {[%clk 0:00:05.6]} 76... Qg4 {[%clk
0:00:07.3]} 77. Ke3 {[%clk 0:00:06.5]} 77... h4 {[%clk 0:00:08.2]} 78. Kf2
{[%clk 0:00:07.4]} 78... h3 {[%clk 0:00:09.1]} 79. Kf1 {[%clk 0:00:07.9]} 79...
h2 {[%clk 0:00:10]} 80. Kf2 {[%clk 0:00:08.8]} 80... h1=Q {[%clk 0:00:10.3]} 81.
Ke3 {[%clk 0:00:09.7]} 81... Qhf3+ {[%clk 0:00:10.4]} 82. Kd2 {[%clk 0:00:10.3]}
82... Qgg2+ {[%clk 0:00:11.3]} 83. Ke1 {[%clk 0:00:11.2]} 83... Qff1# {[%clk
0:00:12.2]} 0-1

[Event "*** Titled Tuesday Blitz"]
[Site "Chess.com"]
[Date "2020.05.26"]
[Round "7"]
[White "Moon_stone123"]
[Black "Tenamu"]
[Result "1/2-1/2"]
[WhiteElo "2512"]
[BlackElo "2376"]
[TimeControl "180+1"]
[EndTime "11:23:13 PDT"]
[Termination "Game drawn by repetition"]

1. Nf3 {[%clk 0:03:00.9]} 1... d5 {[%clk 0:02:59.1]} 2. g3 {[%clk 0:02:54.7]}
2... c6 {[%clk 0:02:53.1]} 3. Bg2 {[%clk 0:02:53.2]} 3... Bg4 {[%clk 0:02:53.1]}
4. O-O {[%clk 0:02:48.7]} 4... Nd7 {[%clk 0:02:52.6]} 5. d3 {[%clk 0:02:48.1]}
5... Ngf6 {[%clk 0:02:51.5]} 6. Nbd2 {[%clk 0:02:46.1]} 6... e5 {[%clk 0:02:49]}
7. c4 {[%clk 0:02:44.3]} 7... Bc5 {[%clk 0:02:34.1]} 8. h3 {[%clk 0:02:33.8]}
8... Bh5 {[%clk 0:02:31.4]} 9. g4 {[%clk 0:02:21.4]} 9... Bg6 {[%clk 0:02:31]}
10. Nh4 {[%clk 0:02:19.5]} 10... O-O {[%clk 0:02:28.2]} 11. Nxg6 {[%clk
0:02:18.9]} 11... hxg6 {[%clk 0:02:27.3]} 12. a3 {[%clk 0:02:14]} 12... a5
{[%clk 0:02:25.8]} 13. b3 {[%clk 0:02:11.9]} 13... Nh7 {[%clk 0:02:21.5]} 14.
Bb2 {[%clk 0:02:05.3]} 14... Kh8 {[%clk 0:01:49.5]} 15. cxd5 {[%clk 0:01:59.3]}
15... cxd5 {[%clk 0:01:48.9]} 16. Bxd5 {[%clk 0:01:53.5]} 16... Qh4 {[%clk
0:01:48.8]} 17. Bg2 {[%clk 0:01:50.2]} 17... Ng5 {[%clk 0:01:48.7]} 18. e3
{[%clk 0:00:58.4]} 18... Nxh3+ {[%clk 0:01:44.8]} 19. Bxh3 {[%clk 0:00:57.2]}
19... Qxh3 {[%clk 0:01:44.6]} 20. Qf3 {[%clk 0:00:57.8]} 20... Qxf3 {[%clk
0:01:30.5]} 21. Nxf3 {[%clk 0:00:56.6]} 21... f6 {[%clk 0:01:31.1]} 22. Rac1
{[%clk 0:00:50.6]} 22... Kg8 {[%clk 0:01:27.3]} 23. Rfd1 {[%clk 0:00:49.2]}
23... Rac8 {[%clk 0:01:16.1]} 24. d4 {[%clk 0:00:48.2]} 24... exd4 {[%clk
0:01:15.4]} 25. Nxd4 {[%clk 0:00:49.1]} 25... Kf7 {[%clk 0:01:09.4]} 26. Nb5
{[%clk 0:00:42]} 26... Ne5 {[%clk 0:01:08.2]} 27. Bxe5 {[%clk 0:00:40]} 27...
fxe5 {[%clk 0:01:08]} 28. a4 {[%clk 0:00:32.5]} 28... Ke6 {[%clk 0:01:06.4]} 29.
Kf1 {[%clk 0:00:28.4]} 29... Rc6 {[%clk 0:01:02.5]} 30. Ke2 {[%clk 0:00:27.9]}
30... g5 {[%clk 0:00:59.2]} 31. Rc4 {[%clk 0:00:26.3]} 31... Ke7 {[%clk
0:00:50.5]} 32. Rd5 {[%clk 0:00:24]} 32... b6 {[%clk 0:00:45.9]} 33. Rxe5+
{[%clk 0:00:22.8]} 33... Kd7 {[%clk 0:00:44.8]} 34. Rd5+ {[%clk 0:00:22.7]}
34... Ke6 {[%clk 0:00:43.9]} 35. Rd1 {[%clk 0:00:21.6]} 35... Ke7 {[%clk
0:00:43.3]} 36. Nd4 {[%clk 0:00:20.1]} 36... Rcf6 {[%clk 0:00:37.6]} 37. Nf5+
{[%clk 0:00:20.5]} 37... Ke6 {[%clk 0:00:32.7]} 38. Rf1 {[%clk 0:00:18.8]} 38...
g6 {[%clk 0:00:32.4]} 39. Ng3 {[%clk 0:00:19.3]} 39... Rf3 {[%clk 0:00:31.5]}
40. Ne4 {[%clk 0:00:19.6]} 40... Bxe3 {[%clk 0:00:31.2]} 41. Rc2 {[%clk
0:00:11.8]} 41... Ke7 {[%clk 0:00:29.5]} 42. Rc7+ {[%clk 0:00:11.3]} 42... Kd8
{[%clk 0:00:29.2]} 43. Rc2 {[%clk 0:00:12.2]} 43... Bd4 {[%clk 0:00:28.2]} 44.
Nxg5 {[%clk 0:00:11.1]} 44... Rxf2+ {[%clk 0:00:26.5]} 45. Rxf2 {[%clk
0:00:11.4]} 45... Rxf2+ {[%clk 0:00:27.3]} 46. Kd3 {[%clk 0:00:11.9]} 46... Rxc2
{[%clk 0:00:23.7]} 47. Kxc2 {[%clk 0:00:12.8]} 47... Be3 {[%clk 0:00:22.4]} 48.
Ne4 {[%clk 0:00:12.9]} 48... Ke7 {[%clk 0:00:22.1]} 49. Kd3 {[%clk 0:00:13.8]}
49... Bc1 {[%clk 0:00:20.6]} 50. Nc3 {[%clk 0:00:13.8]} 50... Kd6 {[%clk
0:00:20.1]} 51. Kc4 {[%clk 0:00:13]} 51... Be3 {[%clk 0:00:19]} 52. Nd5 {[%clk
0:00:11.9]} 52... Bc5 {[%clk 0:00:17.9]} 53. Nf4 {[%clk 0:00:12.2]} 53... g5
{[%clk 0:00:16.2]} 54. Nh3 {[%clk 0:00:12.7]} 54... Be3 {[%clk 0:00:16.3]} 55.
Kd3 {[%clk 0:00:13.5]} 55... Bc1 {[%clk 0:00:15.9]} 56. Ke4 {[%clk 0:00:13.7]}
56... Ke6 {[%clk 0:00:15.6]} 57. Nf2 {[%clk 0:00:13.2]} 57... Kd6 {[%clk
0:00:15.1]} 58. Nd3 {[%clk 0:00:13.2]} 58... Bd2 {[%clk 0:00:15.1]} 59. Kf5
{[%clk 0:00:13.1]} 59... Kd5 {[%clk 0:00:14.9]} 60. Ne5 {[%clk 0:00:12.1]} 60...
Kd4 {[%clk 0:00:13.6]} 61. Nf3+ {[%clk 0:00:10.7]} 61... Kc3 {[%clk 0:00:13]}
62. Nxd2 {[%clk 0:00:11.2]} 62... Kxd2 {[%clk 0:00:13.9]} 63. Kxg5 {[%clk
0:00:11.7]} 63... Kc3 {[%clk 0:00:14.8]} 64. Kf5 {[%clk 0:00:12.1]} 64... Kxb3
{[%clk 0:00:15.7]} 65. g5 {[%clk 0:00:12]} 65... Kxa4 {[%clk 0:00:16.6]} 66. g6
{[%clk 0:00:12.2]} 66... b5 {[%clk 0:00:17.5]} 67. g7 {[%clk 0:00:12.7]} 67...
b4 {[%clk 0:00:18.4]} 68. g8=Q {[%clk 0:00:13.2]} 68... b3 {[%clk 0:00:18.9]}
69. Qc4+ {[%clk 0:00:12.9]} 69... Ka3 {[%clk 0:00:19.8]} 70. Ke4 {[%clk
0:00:08.7]} 70... a4 {[%clk 0:00:20.7]} 71. Kd3 {[%clk 0:00:08.5]} 71... b2
{[%clk 0:00:17.7]} 72. Qc3+ {[%clk 0:00:08.2]} 72... Ka2 {[%clk 0:00:17.7]} 73.
Qc4+ {[%clk 0:00:08.5]} 73... Ka3 {[%clk 0:00:14.9]} 74. Qc3+ {[%clk 0:00:08.7]}
74... Ka2 {[%clk 0:00:14]} 75. Qc2 {[%clk 0:00:08.6]} 75... a3 {[%clk
0:00:12.9]} 76. Kc3 {[%clk 0:00:08.8]} 76... Ka1 {[%clk 0:00:12.5]} 77. Qb3
{[%clk 0:00:03.7]} 77... b1=Q {[%clk 0:00:11.5]} 78. Qxa3+ {[%clk 0:00:03.5]}
78... Qa2 {[%clk 0:00:10.7]} 79. Qc1+ {[%clk 0:00:04.1]} 79... Qb1 {[%clk
0:00:10.8]} 80. Qa3+ {[%clk 0:00:05]} 80... Qa2 {[%clk 0:00:11]} 81. Qc1+ {[%clk
0:00:05.2]} 81... Qb1 {[%clk 0:00:11.3]} 82. Qa3+ {[%clk 0:00:05.7]} 1/2-1/2